Cogmind - Beta 11 X8 @@@ ROGUE MODE // 2021.12.12 @ 23:55:27 Player: youngster Result: Destroyed by Y-54 Guardian with Flak Gun Performance ------------- Evolutions (4) 2000 Regions Visited (13) 2600 Robots Destroyed (121) 605 Value Destroyed (4433) 4433 Prototype IDs (39) 780 Alien Tech Used (1) 200 Bonus (1870) 1870 TOTAL SCORE: 12488 Bonus ------- High Alert Combat Kills 82 Follower Combat Kills 607 Met Imprinter 300 Destroyed Z-Imprinter 1000 Friendly Fire -119 Cogmind --------- Core Integrity 0/850 Matter 140/300 Energy 93/100 System Corruption 0% Temperature Cool (6) Movement Core (50) Location -6/Extension Parts ------- > --- POWER (1) -------- (None) > --- PROPULSION (5) --- (None) > --- UTILITY (7) ------ (None) > --- WEAPON (3) ------- Powered Hammer > --- INVENTORY (5) ---- Zionite Biocell (600) Molecular Deconstructor GAL Module Peak State ------------ > --- POWER ------------ Cold Fusion Reactor > --- PROPULSION ------- Medium Treads Medium Treads Medium Treads Medium Treads Spiked Medium Treads > --- UTILITY ---------- Experimental Heat Sink Huge Storage Unit Surveybot 24 Scanner Improved Terrain Scan Processor Advanced Targeting Computer Improved Light Armor Plating Improved Shield Generator > --- WEAPON ----------- Gauss Rifle Hypervelocity Gauss Rifle Advanced Assault Cannon > --- INVENTORY -------- Zionite Light DM Reactor Armored Wheel Armored Wheel Zionite Biocell High-capacity Matter Pod Experimental Sensor Array Zionite Weapon Casing Zionite Weapon Casing Zionite Weapon Casing Hardened Medium Armor Plating Improved Light Armor Plating Makeshift System Restoration Module Long-range Tractor Beam Hacking Drone Bay Chronowheel Gauss Rifle Gauss Rifle Flak Gun Precision Assault Rifle Rocket Launcher Remote Datajack Molecular Deconstructor Powered Hammer GAL Module [Rating: 82] Favorites ----------- Power Improved Deuterium Engine Engine Improved Deuterium Engine Power Core Light Nuclear Core Reactor Cold Fusion Reactor Propulsion Light Treads Treads Light Treads Wheel Armored Wheel Utility Huge Storage Unit Device Experimental Sensor Array Storage Huge Storage Unit Processor Advanced Targeting Computer Protection Light Armor Plating Weapon EM Shotgun Energy Gun EM Shotgun Energy Cannon Beam Cannon Ballistic Gun Flak Gun Ballistic Cannon Advanced Assault Cannon Launcher Rocket Launcher Impact Weapon Powered Hammer Slashing Weapon Axe Special Melee Weapon Datajack Build | -11 -10 -10 -10 -9 -8 -7 -7 -7 -7 -7 -6 -6 -6 ------- Run | Scr Mat Min Exi Min Mat Fac Low Low Zio Dee Pro Fac Ext Slots Evolved 8 | . . . . . 4 2 . . . . . 2 . Power . | . . . . . . . . . . . . . . Propulsion 3 | . . . . . 2 1 . . . . . . . Utility 4 | . . . . . 1 1 . . . . . 2 . Weapon 1 | . . . . . 1 . . . . . . . . Parts Attached 232 | 6 25 6 2 11 34 36 26 7 3 15 9 51 1 Power 7 | 1 . . . . 1 1 . 1 . 2 . 1 . Engine 4 | 1 . . . . . 1 . 1 . 1 . . . Core 1 | . . . . . 1 . . . . . . . . Reactor 2 | . . . . . . . . . . 1 . 1 . Propulsion 76 | 2 12 1 . 6 18 14 9 . 1 . 1 12 . Treads 43 | 2 6 . . 2 11 7 4 . 1 . 1 9 . Leg . | . . . . . . . . . . . . . . Wheel 33 | . 6 1 . 4 7 7 5 . . . . 3 . Hover . | . . . . . . . . . . . . . . Flight . | . . . . . . . . . . . . . . Utility 76 | 1 4 1 . 1 5 13 10 4 . 9 3 25 . Device 34 | . 1 . . . 2 5 7 2 . 2 1 14 . Storage 4 | 1 1 1 . . . . . . . 1 . . . Processor 5 | . . . . . 1 2 . . . . . 2 . Hackware . | . . . . . . . . . . . . . . Protection 33 | . 2 . . 1 2 6 3 2 . 6 2 9 . Artifact . | . . . . . . . . . . . . . . Weapon 73 | 2 9 4 2 4 10 8 7 2 2 4 5 13 1 Energy Gun 11 | 1 4 2 1 2 1 . . . . . . . . Energy Cannon 1 | . 1 . . . . . . . . . . . . Ballistic Gun 30 | 1 3 2 . . 4 5 3 . 1 1 2 8 . Ballistic Cannon 3 | . . . . . 1 . . . 1 . . 1 . Launcher 12 | . . . . 2 . 1 2 1 . 2 2 2 . Special Weapon . | . . . . . . . . . . . . . . Impact Weapon 12 | . 1 . 1 . 2 . 2 1 . 1 1 2 1 Slashing Weapon 3 | . . . . . 2 1 . . . . . . . Piercing Weapon . | . . . . . . . . . . . . . . Special Melee Weapon 1 | . . . . . . 1 . . . . . . . Unidentified Prototypes 10 | . . . . . . 1 1 1 . 5 . 2 . Parts Lost 33 | . 1 . . . 5 3 2 1 . . . 21 . Power 3 | . . . . . . 1 . 1 . . . 1 . Propulsion 11 | . . . . . 1 1 2 . . . . 7 . Utility 11 | . . . . . 3 1 . . . . . 7 . Weapon 8 | . 1 . . . 1 . . . . . . 6 . Highest Loss Streak 13 | . 1 . . . 3 2 1 1 . . . 13 . Average Slot Usage (%) 97 | . 93 100 100 100 98 98 99 99 100 99 100 90 4 Engine 8 | . 14 14 14 14 3 2 7 6 7 6 7 3 . Treads 16 | . 16 2 . 6 21 23 23 22 21 21 21 16 . Wheel 15 | . 11 25 28 21 14 14 13 14 14 14 14 9 . Device 4 | . . . . . 5 10 6 6 7 6 6 9 . Storage 9 | . 14 14 14 14 9 7 7 7 7 7 7 5 . Processor 6 | . . . . . 3 3 15 14 14 7 7 9 . Protection 9 | . 7 14 14 14 8 7 1 2 7 14 14 13 . Energy Gun 7 | . 10 27 27 21 6 . . . . . . . . Ballistic Gun 10 | . 15 . . . 11 19 18 14 12 10 9 8 . Ballistic Cannon 2 | . . . . . 6 . . . 1 7 7 5 . Launcher 1 | . . . . 6 . . 1 2 . 1 3 . . Impact Weapon 1 | . . . . . . . 2 4 7 1 . 2 4 Naked Turns 40 | . . . . . . . . . . . . 18 22 Heaviest Build 124 | 13 59 94 94 95 103 117 113 109 112 117 117 124 3 Greatest Support 140 | 40 40 20 20 20 92 127 111 63 24 24 24 140 3 Greatest Overweight (x) 9 | . 5 5 4 4 6 5 4 4 4 4 4 9 . Average Overweight (x) 3 | . 4 4 4 4 2 3 3 3 4 4 4 3 . Largest Inventory Capacity 25 | 8 20 25 25 25 25 25 25 25 25 25 25 25 5 Average Capacity 24 | 6 19 24 25 25 25 25 25 25 25 25 25 24 5 Most Carried 25 | 4 20 25 25 25 25 25 25 25 25 25 25 25 5 Average Carried 23 | 2 16 24 24 25 24 24 24 24 24 24 25 23 4 Final Capacity 25 | 8 20 25 25 25 25 25 25 25 25 25 25 5 5 Final Carried 25 | 4 20 25 25 25 24 25 25 25 25 25 25 5 4 Class Distribution -------------------- 45% | Mutant 18% | Scavenger-Mutant 15% | Tank 8% | Commander-Mutant 3% | Gunner 3% | Derelict-Mutant 3% | Scavenger-Gunner Dominant Class ---------------- Mutant | -10/Materials Mutant | -10/Mines Commander-Mutant | -10/Exiles Mutant | -9/Mines Gunner | -8/Materials Mutant | -7/Factory Scavenger-Gunner | -7/Lower Caves Scavenger-Mutant | -7/Lower Caves Scavenger-Mutant | -7/Zion Tank | -7/Deep Caves Mutant | -6/Proximity Caves Derelict-Mutant | -6/Factory Mutant | -6/Extension Resources | -11 -10 -10 -10 -9 -8 -7 -7 -7 -7 -7 -6 -6 -6 ----------- Run | Scr Mat Min Exi Min Mat Fac Low Low Zio Dee Pro Fac Ext Matter Collected 4351 | 281 674 72 20 176 635 334 475 170 22 291 178 1023 . Remotely 187 | . . . . . . . . . . . . 187 . Salvage Created 4800 | 132 624 136 74 254 740 320 664 236 . 154 121 1273 72 Parts 257 | 12 45 12 2 16 33 24 35 4 . 10 7 55 2 Haulers Intercepted 6 | . 2 . . . 4 . . . . . . . . Recyclers Shooed 2 | 1 1 . . . . . . . . . . . . Parts Field Recycled 53 | . 21 . . . . 29 3 . . . . . . Retrieved Matter 515 | . 89 . . . . 399 27 . . . . . . Parts Self-Destructed 49 | . . . . . . . 26 3 . . 20 . . Prevented 1 | . . . . . . . . 1 . . . . . Kills | -11 -10 -10 -10 -9 -8 -7 -7 -7 -7 -7 -6 -6 -6 ------- Run | Scr Mat Min Exi Min Mat Fac Low Low Zio Dee Pro Fac Ext Combat Hostiles Destroyed 95 | . 10 2 . 8 13 5 12 7 . 3 8 26 1 Guns 43 | . 7 2 . 2 9 5 4 2 . 1 1 10 . Cannons 16 | . 3 . . . 4 . . . . . . 9 . AOE 35 | . . . . 6 . . 8 5 . 2 7 7 . Classes Destroyed 16 | 2 5 2 . 1 3 . 2 . . 1 . . . Worker 9 | . . 1 . 4 1 1 . . . . . 2 . Builder 4 | . 2 . . 1 1 . . . . . . . . Tunneler 6 | 3 1 1 . 1 . . . . . . . . . Hauler 6 | . 2 . . . 4 . . . . . . . . Recycler 3 | 1 1 . . . . . . . . . . 1 . Watcher 2 | . 2 . . . . . . . . . . . . Swarmer 14 | . 3 . . . . . 1 2 . . 4 4 . Grunt 43 | . 7 1 . 4 7 1 4 2 . . 4 13 . Brawler 5 | . . . . . 1 . 1 1 . . . 2 . Duelist 4 | . . . . . 2 . 1 1 . . . . . Sentry 11 | . . 1 . . 2 3 1 1 . . . 2 1 Specialist 2 | . . . . . . . 2 . . . . . . Hunter 6 | . . . . . 1 1 1 . . . . 3 . Programmer 3 | . . . . . . . 1 . . . . 2 . Z-Light 3 | . . . . . . . . . . 3 . . . Assembled 4 | . . . . 4 . . . . . . . . . Best Kill Streak 10 | 4 3 1 . 4 3 2 8 7 . 2 7 10 1 Combat Bots Only 9 | . 2 1 . 3 3 1 8 7 . 2 7 9 1 Max Kills in Single Turn 3 | 1 1 1 . 2 1 1 3 1 . 2 3 3 1 Gunslinging . | . . . . . . . . . . . . . . Exploded 3 | . . . . 2 . . 3 1 . 2 3 2 . Melee . | . . . . . . . . . . . . . . Uniques/NPCs Destroyed 1 | . . . . . . . . . . 1 . . . Z-Imprinter (-7/Deep Caves) Combat | -11 -10 -10 -10 -9 -8 -7 -7 -7 -7 -7 -6 -6 -6 -------- Run | Scr Mat Min Exi Min Mat Fac Low Low Zio Dee Pro Fac Ext Damage Taken 7421 | . 516 169 . 95 1035 889 640 86 . 194 90 3326 381 Core 1141 | . 28 24 . . 64 38 95 . . . 38 521 333 Absorbed by Shields 421 | . . . . . . . . . . . . 421 . Core Remaining (%) 85 | 100 . . . 79 88 . . . . . 75 . . Volleys Fired 253 | 7 46 18 3 13 42 14 16 9 . 10 8 67 . Largest 3 | 2 2 2 2 2 3 3 3 2 . 3 2 3 . Hottest 117 | 60 90 90 90 90 117 71 84 56 . 101 76 109 . Shots Fired 552 | 14 90 29 6 20 120 42 35 11 . 24 10 151 . Gun 425 | 14 81 29 6 14 87 42 29 4 . 14 2 103 . Cannon 94 | . 9 . . . 33 . . . . 8 2 42 . Launcher 33 | . . . . 6 . . 6 7 . 2 6 6 . Special . | . . . . . . . . . . . . . . Kinetic 417 | 7 63 4 . . 97 42 29 4 . 22 4 145 . Thermal 16 | 7 9 . . . . . . . . . . . . Explosive 33 | . . . . 6 . . 6 7 . 2 6 6 . Electromagnetic 86 | . 18 25 6 14 23 . . . . . . . . Robot Hit Streak 16 | 5 16 6 5 6 7 7 12 5 . 5 5 10 . Robot Miss Streak 9 | 3 4 3 1 2 6 1 3 3 . 6 2 9 . Penetration Max 2 | . . . . . 1 . . . . . . 2 . Secondary Targets 3 | . 1 . . . . . 1 1 . . . . . Max Gunslinging Chain 1 | . 1 . . . . . 1 1 . . . . . Shots Hit Robots 403 | 8 61 17 6 12 88 33 30 8 . 15 6 112 7 Core Hits 326 | 5 32 8 3 18 57 17 42 17 . 18 20 89 . Critical Kills 4 | . . . . . . . . . . . . 4 . Critical Parts Destroyed 9 | . . . . . 1 1 . . . . . 6 1 Critical Strikes 17 | . . . . . 1 1 . . . 2 . 12 1 Destroy 12 | . . . . . 1 1 . . . . . 10 . Blast 4 | . . . . . . . . . . 2 . 2 . Smash 1 | . . . . . . . . . . . . . 1 Melee Attacks 50 | . 3 . 1 . 4 10 6 2 10 1 . 6 7 Impact 38 | . 3 . 1 . 2 . 6 2 10 1 . 6 7 Slashing 10 | . . . . . 2 8 . . . . . . . Piercing . | . . . . . . . . . . . . . . Sneak Attacks 2 | . . . . . . 2 . . . . . . . Combat Hostiles . | . . . . . . . . . . . . . . Follow-up Attacks . | . . . . . . . . . . . . . . Damage Inflicted 11286 | 101 797 191 201 767 1610 471 1491 717 . 774 1055 2987 124 Guns 4718 | 101 614 191 85 162 938 463 375 69 . 189 43 1488 . Cannons 1637 | . 158 . . . 580 . . . . 193 . 706 . Explosions 4114 | . . . . 605 58 . 827 578 . 272 1012 762 . Melee 719 | . . . 116 . . . 289 70 . 120 . . 124 Ramming 98 | . 25 . . . 34 8 . . . . . 31 . Kinetic 5331 | 57 471 40 . . 1237 463 375 69 . 382 43 2194 . Thermal 440 | 44 158 . . 180 58 . . . . . . . . Explosive 3876 | . . . . 425 . . 827 578 . 272 1012 762 . Electromagnetic 822 | . 143 151 85 162 281 . . . . . . . . Impact 719 | . . . 116 . . . 289 70 . 120 . . 124 Slashing . | . . . . . . . . . . . . . . Piercing . | . . . . . . . . . . . . . . Highest Corruption 4 | . . . . . 4 3 2 . . . . . . Average Corruption 2 | . . . . . 4 2 1 . . . . . . Corruption Purged 5 | . . . . . . 1 4 . . . . . . Effects 21 | . . . . . 11 9 1 . . . . . . Message Errors 11 | . . . . . 7 4 . . . . . . . Matter Fused 4 | . . . . . 3 1 . . . . . . . Heat Flow Errors 1 | . . . . . . 1 . . . . . . . Energy Discharges 4 | . . . . . 1 2 1 . . . . . . Data Loss (minor) 1 | . . . . . . 1 . . . . . . . Overload Shots . | . . . . . . . . . . . . . . Overflow Damage 376 | . . . . 24 16 . 79 67 . 138 20 18 14 Projectiles 36 | . . . . . . . . . . 36 . . . Explosions 117 | . . . . 24 16 . 23 16 . . 20 18 . Melee 223 | . . . . . . . 56 51 . 102 . . 14 Knockbacks 28 | . . . . . 16 . . . . 5 . 7 . Impact . | . . . . . . . . . . . . . . Kinetic 28 | . . . . . 16 . . . . 5 . 7 . Secondary . | . . . . . . . . . . . . . . Self-Inflicted Damage 293 | . . . . 42 47 . . 15 . . . 189 . Shots 8 | . . . . 2 1 . . 1 . . . 4 . Rammed 15 | 1 6 . . . 4 . . . . . . 4 . Targets Rammed 17 | 1 6 . . . 4 1 . . . . . 5 . Kicked . | . . . . . . . . . . . . . . Crushed 2 | . . . . . . 1 . . . . . 1 . Highest Temperature 422 | . 224 238 78 53 213 248 48 . . 95 16 422 . Average Temperature 77 | . 58 70 44 23 71 51 21 . . 43 8 191 . Received Heat Transfer 2332 | . 189 96 . 24 459 156 72 27 . 54 36 1105 114 Effects 11 | . 2 2 . . . . . . . . . 7 . Energy Bleed 1 | . . . . . . . . . . . . 1 . Interference 7 | . 2 2 . . . . . . . . . 3 . Matter Decay 1 | . . . . . . . . . . . . 1 . Damage (minor) 2 | . . . . . . . . . . . . 2 . Siege Activations . | . . . . . . . . . . . . . . Robots Corrupted . | . . . . . . . . . . . . . . Combat Hostiles . | . . . . . . . . . . . . . . Parts Fried 3 | . . . . . 1 . 1 . . . . . 1 Impact Corruptions 8 | . . . . . . . 3 2 . 2 . . 1 Robots Melted . | . . . . . . . . . . . . . . Combat Hostiles . | . . . . . . . . . . . . . . Parts Melted 1 | . 1 . . . . . . . . . . . . Heat Transferred 683 | 100 333 . . 150 100 . . . . . . . . Parts Sabotaged 3 | . . . . . . . . . . . . 3 . Parts Stolen . | . . . . . . . . . . . . . . Parts Stripped . | . . . . . . . . . . . . . . Power Chain Reactions 2 | . . . . 1 1 . . . . . . . . Missiles Intercepted . | . . . . . . . . . . . . . . Alert | -11 -10 -10 -10 -9 -8 -7 -7 -7 -7 -7 -6 -6 -6 ------- Run | Scr Mat Min Exi Min Mat Fac Low Low Zio Dee Pro Fac Ext Peak Influence 525 | 20 196 49 . 119 193 151 . . . . . 525 215 Initial 165 | . 13 3 . . 2 63 . . . . . 88 165 Average 84 | 7 70 26 . 40 68 75 . . . . . 233 194 Maximum Alert Level 2 | . . . . . . . . . . . . 2 1 Low Security (%) 90 | 100 100 100 . 100 100 100 . . . . . 43 58 Level 1 6 | . . . . . . . . . . . . 42 41 Level 2 2 | . . . . . . . . . . . . 14 . Level 3 . | . . . . . . . . . . . . . . Level 4 . | . . . . . . . . . . . . . . Level 5 . | . . . . . . . . . . . . . . High Security . | . . . . . . . . . . . . . . Max Security . | . . . . . . . . . . . . . . Squads Dispatched 19 | . 2 . . 1 5 1 . . . . . 10 . Investigation 5 | . 1 . . . 1 1 . . . . . 2 . Extermination 2 | . . . . . . . . . . . . 2 . Reinforcement 7 | . 1 . . 1 1 . . . . . . 4 . Assault 1 | . . . . . . . . . . . . 1 . Garrison 4 | . . . . . 3 . . . . . . 1 . Intercept . | . . . . . . . . . . . . . . Construction Impeded 2 | . . . . 1 . . . . . . . 1 . Haulers Reinforced . | . . . . . . . . . . . . . . Active Scanning Responses . | . . . . . . . . . . . . . . Cargo Convoy Interrupts 1 | . . . . . . . . . . . . 1 . Stealth | -11 -10 -10 -10 -9 -8 -7 -7 -7 -7 -7 -6 -6 -6 --------- Run | Scr Mat Min Exi Min Mat Fac Low Low Zio Dee Pro Fac Ext Distress Signals 6 | . 2 . . . 1 . . . . . . 3 . Communications Jammed . | . . . . . . . . . . . . . . Distress Signals . | . . . . . . . . . . . . . . Times Spotted 153 | . 24 2 . 13 19 8 11 6 . 17 9 41 3 Peak Tracking Total 12 | . 3 2 . 3 3 2 7 7 . 5 7 12 3 Tactical Retreats 3 | . 1 . . . . . . . . . . 2 . Traps | -11 -10 -10 -10 -9 -8 -7 -7 -7 -7 -7 -6 -6 -6 ------- Run | Scr Mat Min Exi Min Mat Fac Low Low Zio Dee Pro Fac Ext Traps Triggered 2 | . 1 . . . . 1 . . . . . . . Indirectly . | . . . . . . . . . . . . . . Trap Hack Attempts . | . . . . . . . . . . . . . . Triggered . | . . . . . . . . . . . . . . Disarmed . | . . . . . . . . . . . . . . Reprogrammed . | . . . . . . . . . . . . . . Reused . | . . . . . . . . . . . . . . Traps Extracted . | . . . . . . . . . . . . . . Installed 3 | . . . . 3 . . . . . . . . . Triggered 2 | . . . . . . . . 1 . . . 1 . Machines | -11 -10 -10 -10 -9 -8 -7 -7 -7 -7 -7 -6 -6 -6 ---------- Run | Scr Mat Min Exi Min Mat Fac Low Low Zio Dee Pro Fac Ext Machines Disabled 10 | . . . . 2 1 1 2 . . 1 2 1 . Max in Single Turn 2 | . . . . 2 1 1 1 . . . 1 1 . Garrison Access 2 | . . . . . . 1 . . . . . 1 . Machines Sabotaged . | . . . . . . . . . . . . . . Garrisons Compromised 1 | . . . . . . . . . . . . 1 . Overloaded Fab Kills . | . . . . . . . . . . . . . . Hacking | -11 -10 -10 -10 -9 -8 -7 -7 -7 -7 -7 -6 -6 -6 --------- Run | Scr Mat Min Exi Min Mat Fac Low Low Zio Dee Pro Fac Ext Machines Accessed 28 | . 10 1 2 . 4 6 . . . . 1 4 . Terminals 14 | . 7 1 . . 3 1 . . . . 1 1 . Fabricators . | . . . . . . . . . . . . . . Repair Stations 2 | . 1 . . . . . . . . . . 1 . Recycling Units 5 | . 2 . . . 1 2 . . . . . . . Scanalyzers 2 | . . . . . . 2 . . . . . . . Garrison Access 3 | . . . . . . 1 . . . . . 2 . Total Hacks 98 | . 33 2 24 . 11 11 . . . . 9 8 . Successful 63 | . 18 . 24 . 7 4 . . . . 9 1 . Failed 35 | . 15 2 . . 4 7 . . . . . 7 . Catastrophic 6 | . 1 . . . 1 . . . . . . 4 . Database Lockouts . | . . . . . . . . . . . . . . Manual 41 | . 22 . 1 . 7 4 2 . 4 . . 1 . Terminals 51 | . 25 2 . . 10 3 . . . . 9 2 . Fabricators . | . . . . . . . . . . . . . . Repair Stations 6 | . 4 . . . . . . . . . . 2 . Recycling Units 7 | . 4 . . . 1 2 . . . . . . . Scanalyzers 4 | . . . . . . 4 . . . . . . . Garrison Access 6 | . . . . . . 2 . . . . . 4 . Terminal Hacks 46 | . 8 . 24 . 4 1 . . . . 9 . . Record 32 | . . . 23 . . . . . . . 9 . . Prototype ID Bank 4 | . 3 . . . 1 . . . . . . . . Branch Access Points 1 | . . . . . . 1 . . . . . . . Unreport Threat 2 | . . . . . 2 . . . . . . . . Locate Traps 5 | . 4 . . . 1 . . . . . . . . Hauler Manifests 1 | . 1 . . . . . . . . . . . . EX-Prototype ID Bank 1 | . . . 1 . . . . . . . . . . Fabricator Hacks . | . . . . . . . . . . . . . . Repair Station Hacks 3 | . 2 . . . . . . . . . . 1 . Scan Component 2 | . 1 . . . . . . . . . . 1 . Repair 1 | . 1 . . . . . . . . . . . . Recycling Unit Hacks . | . . . . . . . . . . . . . . Scanalyzer . | . . . . . . . . . . . . . . Garrison Access Hacks 1 | . . . . . . 1 . . . . . . . Seal Access 1 | . . . . . . 1 . . . . . . . Unauthorized Hacks 13 | . 8 . . . 3 2 . . . . . . . Terminals 10 | . 7 . . . 2 1 . . . . . . . Track 2 | . 2 . . . . . . . . . . . . Botnet 7 | . 4 . . . 2 1 . . . . . . . Operators 1 | . 1 . . . . . . . . . . . . Fabricators . | . . . . . . . . . . . . . . Repair Stations . | . . . . . . . . . . . . . . Recycling Units 3 | . 1 . . . 1 1 . . . . . . . Tunnel 3 | . 1 . . . 1 1 . . . . . . . Scanalyzers . | . . . . . . . . . . . . . . Garrison Access . | . . . . . . . . . . . . . . Data Cores Recovered . | . . . . . . . . . . . . . . Used . | . . . . . . . . . . . . . . Hacking Detections 22 | . 9 1 . . 3 4 . . . . 1 4 . Full Trace Events 3 | . 1 . . . . . . . . . . 2 . Feedback Events . | . . . . . . . . . . . . . . Feedback Blocked . | . . . . . . . . . . . . . . Robot Schematics Acquired 4 | . . . . . . . . . 4 . . . . Robots Built . | . . . . . . . . . . . . . . Authchips . | . . . . . . . . . . . . . . Time . | . . . . . . . . . . . . . . Total Robot Build Rating . | . . . . . . . . . . . . . . Part Schematics Acquired 13 | . . . . . . . . . 13 . . . . Parts Built . | . . . . . . . . . . . . . . Authchips . | . . . . . . . . . . . . . . Time . | . . . . . . . . . . . . . . Total Part Build Rating . | . . . . . . . . . . . . . . Parts Repaired 1 | . 1 . . . . . . . . . . . . Time 13 | . 13 . . . . . . . . . . . . Parts Recycled . | . . . . . . . . . . . . . . Recycled Matter . | . . . . . . . . . . . . . . Retrieved Matter . | . . . . . . . . . . . . . . Retrieved Components . | . . . . . . . . . . . . . . Parts Scanalyzed . | . . . . . . . . . . . . . . Part Schematics Acquired . | . . . . . . . . . . . . . . Parts Damaged . | . . . . . . . . . . . . . . Bothacking | -11 -10 -10 -10 -9 -8 -7 -7 -7 -7 -7 -6 -6 -6 ------------ Run | Scr Mat Min Exi Min Mat Fac Low Low Zio Dee Pro Fac Ext Used RIF Installer . | . . . . . . . . . . . . . . Robots Hacked 1 | . . . . . . 1 . . . . . . . Non-combat 1 | . . . . . . 1 . . . . . . . Combat . | . . . . . . . . . . . . . . Robot Hacks Applied 1 | . . . . . . 1 . . . . . . . find_chute 1 | . . . . . . 1 . . . . . . . Relay Couplers Released 2 | . . . . . . . . . . . . 2 . Machine Destruction 2 | . . . . . . . . . . . . 2 . Fabnet Peak Effective % . | . . . . . . . . . . . . . . Robots Rewired 5 | . . . 3 . . . 1 . . . . 1 . Allies Hacked . | . . . . . . . . . . . . . . Hacks Repelled . | . . . . . . . . . . . . . . Allies | -11 -10 -10 -10 -9 -8 -7 -7 -7 -7 -7 -6 -6 -6 -------- Run | Scr Mat Min Exi Min Mat Fac Low Low Zio Dee Pro Fac Ext Total Allies 19 | . . 3 3 . . . 1 . 11 . . 1 . Largest Group 11 | . . 3 6 6 1 . 1 . 11 11 5 1 . Highest-Rated Group 304 | . . 40 77 77 21 . 32 . 304 304 149 29 . Highest-Rated Ally 37 | . . 16 21 21 21 . 32 . 37 37 37 29 . Total Orders 6 | . . 2 . . 2 . . . . . . 2 . STAY 2 | . . 1 . . 1 . . . . . . . . FOLLOW 2 | . . 1 . . 1 . . . . . . . . RETURN 2 | . . . . . . . . . . . . 2 . Ally Attacks 229 | . . 4 . 44 12 . 1 . . 132 26 10 . Total Damage 3359 | . . 46 . 527 266 . 60 . . 1910 397 153 . Kills 39 | . . 1 . 9 1 . . . . 20 7 1 . Allies Corrupted . | . . . . . . . . . . . . . . Allies Melted . | . . . . . . . . . . . . . . Intel | -11 -10 -10 -10 -9 -8 -7 -7 -7 -7 -7 -6 -6 -6 ------- Run | Scr Mat Min Exi Min Mat Fac Low Low Zio Dee Pro Fac Ext Robot Analysis Total . | . . . . . . . . . . . . . . Derelict Logs Recovered 8 | . . 2 . . . . . . 3 . 3 . . Drone Launches 2 | . . . . . . . . . . . . 2 . Drone Recoveries 2 | . . . . . . . . . . . . 2 . Exploration | -11 -10 -10 -10 -9 -8 -7 -7 -7 -7 -7 -6 -6 -6 ------------- Run | Scr Mat Min Exi Min Mat Fac Low Low Zio Dee Pro Fac Ext Turns Passed 13243 | 99 1628 884 658 1352 799 896 772 790 1641 1602 1008 1047 67 Spaces Moved 7627 | 44 864 566 426 713 379 497 453 496 1055 1013 628 430 63 Core 99 | 7 . . . . . . . . . . . 29 63 Treads 239 | 37 78 . . . 46 28 16 2 . . . 32 . Legs . | . . . . . . . . . . . . . . Wheels 7289 | . 786 566 426 713 333 469 437 494 1055 1013 628 369 . Hover . | . . . . . . . . . . . . . . Flight . | . . . . . . . . . . . . . . Fastest Speed 50 | 50 140 140 140 140 130 135 145 150 150 150 150 50 50 Average Speed 147 | 142 157 141 140 140 149 149 146 150 150 150 150 156 50 Slowest Speed 400 | 160 240 155 140 140 240 240 160 240 150 150 150 400 50 Overloaded Moves . | . . . . . . . . . . . . . . Propulsion Burnouts . | . . . . . . . . . . . . . . Robots Hopped . | . . . . . . . . . . . . . . Cave-ins Triggered 1 | . . . . . . 1 . . . . . . . Exploration Rate (%) 58 | 4 99 98 89 99 33 12 48 67 88 78 70 15 12 Regions Visited 13 Branch Regions 9 Pre-discovered Areas 9 | . 1 1 1 . 1 1 . . 3 . 1 . . Known Exits Taken 2 | . . . . . . 1 . . 1 . . . . Unknown Exits Taken 11 | 1 1 1 1 1 1 . 1 1 . 1 1 1 . Scrap Searched 14 | . . 1 . 3 . . 2 1 3 . 4 . . Spaces Dug 80 | . 2 . . 18 4 5 6 16 . . 24 5 . Terrain Destroyed 264 | . 2 . . 46 6 5 35 36 . 23 50 61 . Melee 18 | . 2 . . . 4 5 1 1 . . . 5 . Projectile 9 | . . . . . . . . . . 1 2 6 . AOE 237 | . . . . 46 2 . 34 35 . 22 48 50 . Terrain Rammed . | . . . . . . . . . . . . . . Walls Destroyed . | . . . . . . . . . . . . . . Machines Disabled . | . . . . . . . . . . . . . . Actions | -11 -10 -10 -10 -9 -8 -7 -7 -7 -7 -7 -6 -6 -6 --------- Run | Scr Mat Min Exi Min Mat Fac Low Low Zio Dee Pro Fac Ext Total 9011 | 63 1034 620 481 1045 504 594 517 526 1108 1087 682 659 91 Wait 559 | 2 46 10 . 302 19 15 6 7 23 18 36 55 20 Move 7615 | 44 863 565 425 712 378 496 452 495 1054 1012 627 429 63 Hop . | . . . . . . . . . . . . . . Pick Up 105 | 4 26 13 3 1 11 10 2 3 8 12 . 12 . Fast Attach 39 | 6 6 . . . 5 4 . 2 2 6 . 8 . Attach 31 | . 2 . . . 10 4 2 2 . 1 . 9 1 Detach 6 | . 2 . . . 1 1 . . . 2 . . . Swap 163 | . 17 6 2 11 19 28 24 4 1 8 9 34 . Drop 107 | . 17 8 3 3 11 11 3 2 10 17 2 20 . Fire 253 | 7 46 18 3 13 42 14 16 9 . 10 8 67 . Melee 50 | . 3 . 1 . 4 10 6 2 10 1 . 6 7 Ram 1 | . . . . . . . . . . . . 1 . Kick . | . . . . . . . . . . . . . . Crush 15 | . 6 . . . 4 1 . . . . . 4 . Escape Stasis . | . . . . . . . . . . . . . . Rewire 64 | . . . 44 . . . 6 . . . . 14 . Trap 3 | . . . . 3 . . . . . . . . . Miscellaneous . | . . . . . . . . . . . . . . Route ------- -11/Scrapyard -10/Materials (discovered 5 exits: [*Mat x3] / *Min x2) -10/Mines (discovered 3 exits: [*Mat x2] / *Exi) -10/Exiles -9/Mines (discovered 2 exits: *Mat x2) -8/Materials -7/Factory (discovered 3 exits: Sto / *Low x2) -7/Lower Caves -7/Lower Caves -7/Zion (discovered 2 exits: *Dee / [*Pro]) -7/Deep Caves -6/Proximity Caves -6/Factory (discovered 4 exits: *Fac x3 / [*Ext]) -6/Extension History --------- Turn | Location | Event 6 | -11/Scrapyard | Discovered new exit (range 15) 100 | -11/Scrapyard | Entered Materials 280 | -10/Materials | Discovered new exit (range 13) 322 | -10/Materials | Build established: Mutant 486 | -10/Materials | Discovered new exit (range 3) 952 | -10/Materials | Discovered new exit (range 13) 1149 | -10/Materials | Discovered new exit (range 11) 1418 | -10/Materials | Discovered new exit (range 9) 1626 | -10/Materials | Repaired Lgt. Treads 1728 | -10/Materials | Entered Mines 1732 | -10/Mines | Assisted by bots powering up and referring to "LRC-V3" 1773 | -10/Mines | Found a damaged Exp. Sensor Array with a note attached 1777 | -10/Mines | Found Prototype Device 1916 | -10/Mines | Discovered new exit (range 15) 2008 | -10/Mines | Received a Rocket Launcher from a helpful Derelict 2024 | -10/Mines | Discovered new exit (range 8) 2410 | -10/Mines | Learned Materials terminal intel 2606 | -10/Mines | Deemed a non-threat by the Exiles lab entrance 2606 | -10/Mines | Discovered new exit (range 5) 2612 | -10/Mines | Entered Exiles 2612 | -10/Exiles | Found Exiles lab destroyed 2612 | -10/Exiles | Accompanied by 3 allies 2747 | -10/Exiles | Learned location of Zion (-7) 2819 | -10/Exiles | Opened EX-Vault 2829 | -10/Exiles | Found Chronowheel 3024 | -10/Exiles | Build established: Commander-Mutant 3252 | -10/Exiles | Discovered new exit (range 10) 3270 | -10/Exiles | Entered Mines 3270 | -9/Mines | Accompanied by 6 allies 3271 | -9/Mines | Assembled infested the area 3624 | -9/Mines | Found a hidden stash of uninstalled traps 4031 | -9/Mines | Discovered new exit (range 15) 4083 | -9/Mines | Discovered new exit (range 3) 4131 | -9/Mines | Build established: Mutant 4622 | -9/Mines | Entered Materials 4622 | -8/Materials | Accompanied by 1 ally 4622 | -8/Materials | Evolved 4 slots: Propulsion x2, Utility x1, Weapon x1 4623 | -8/Materials | Loaded intel: 12 terminal locations 4926 | -8/Materials | Build established: Gunner 4932 | -8/Materials | Garrison activated, responded to threat 4991 | -8/Materials | Lost 3 parts (3u) 5126 | -8/Materials | Discovered new exit (range 15) 5421 | -8/Materials | Entered Factory 5421 | -7/Factory | Evolved 2 slots: Propulsion x1, Utility x1 5846 | -7/Factory | Crushed by falling debris 5867 | -7/Factory | Identified exit to Storage 5867 | -7/Factory | Identified exit to Lower Caves 6317 | -7/Factory | Entered Lower Caves 6421 | -7/Lower Caves | Attracted the attention of an 0b10 outpost 6458 | -7/Lower Caves | Destroyed 8 combat bots 6487 | -7/Lower Caves | Identified Exp. Sensor Array 6670 | -7/Lower Caves | Acquired the password to a Derelict Tinkerer's latest research 6680 | -7/Lower Caves | Found Prototype Special Weapon 6748 | -7/Lower Caves | Caught by Unaware searching for contraband prototypes 6749 | -7/Lower Caves | P-70 Sage assimilated allied Guardian 4a 6851 | -7/Lower Caves | Spotted B-75 Beast 7062 | -7/Lower Caves | Discovered new exit (range 5) 7089 | -7/Lower Caves | Entered another Lower Caves area 7167 | -7/Lower Caves | Build established: Scavenger-Mutant 7362 | -7/Lower Caves | Attracted the attention of an 0b10 checkpoint 7399 | -7/Lower Caves | Destroyed 7 combat bots 7663 | -7/Lower Caves | Found Alien Artifact 7663 | -7/Lower Caves | Identified Core Expander 7663 | -7/Lower Caves | Installed Core Expander, added new Utility slot 7677 | -7/Lower Caves | Encountered a Warlord checkpoint 7700 | -7/Lower Caves | Discovered new exit (range 6) 7879 | -7/Lower Caves | Entered Zion 7993 | -7/Zion | Discovered new exit (range 16) 8148 | -7/Zion | Gained Derelict followers 8235 | -7/Zion | Found GAL Module 8308 | -7/Zion | Given the Hacking Drone Bay 8308 | -7/Zion | Found Prototype Device 8345 | -7/Zion | Learned location of Armory (-3) 8357 | -7/Zion | Gained Derelict followers 8392 | -7/Zion | Learned location of Data Miner (-6) 8570 | -7/Zion | Gained Derelict followers 8620 | -7/Zion | Identified exit to Deep Caves 8651 | -7/Zion | Acquired unknown access codes intercepted by a Zionite 8861 | -7/Zion | Received a visual enhancement algorithm 9155 | -7/Zion | Learned Factory garrison access intel 9467 | -7/Zion | Opened final containment barrier to the Deep Caves 9481 | -7/Zion | Build established: Mutant 9491 | -7/Zion | Saw the warning signs outside the Deep Caves entrance 9520 | -7/Zion | Entered Deep Caves 9520 | -7/Deep Caves | Accompanied by 11 allies 9845 | -7/Deep Caves | Build established: Tank 9932 | -7/Deep Caves | Z-Facility disabled 9956 | -7/Deep Caves | Attacked by Z-Imprinter 9974 | -7/Deep Caves | Allies destroyed Z-Imprinter 10002 | -7/Deep Caves | Found Prototype Protection 10002 | -7/Deep Caves | Identified Zio. Weapon Casing 10144 | -7/Deep Caves | Found Zio. Weapon Casing 10148 | -7/Deep Caves | Found Zio. Weapon Casing 10159 | -7/Deep Caves | Found Zio. Weapon Casing 10203 | -7/Deep Caves | Found Zio. Weapon Casing 10458 | -7/Deep Caves | Found Surveybot 24 Scanner 10460 | -7/Deep Caves | Found Surveybot 24 Chip 10744 | -7/Deep Caves | Build established: Mutant 11109 | -7/Deep Caves | Discovered new exit (range 7) 11122 | -7/Deep Caves | Entered Proximity Caves 11122 | -6/Proximity Caves | Accompanied by 5 allies 11560 | -6/Proximity Caves | Build established: Tank 11603 | -6/Proximity Caves | Learned Factory trap positions 11902 | -6/Proximity Caves | Discovered new exit (range 10) 11944 | -6/Proximity Caves | Build established: Mutant 11955 | -6/Proximity Caves | Attracted the attention of an 0b10 base 11987 | -6/Proximity Caves | Destroyed 7 combat bots 11987 | -6/Proximity Caves | Learned Factory trap positions 11993 | -6/Proximity Caves | Learned location of 1 exit from Factory 11993 | -6/Proximity Caves | Learned 8 Research zone layouts 11993 | -6/Proximity Caves | Learned 6 Lower Caves zone layouts 11993 | -6/Proximity Caves | Learned Research trap positions 11993 | -6/Proximity Caves | Learned Factory emergency access door positions 11993 | -6/Proximity Caves | Learned Extension stockpile data 12130 | -6/Proximity Caves | Entered Factory 12130 | -6/Factory | Evolved 2 slots: Utility x2 12131 | -6/Factory | Identified exit to Factory 12132 | -6/Factory | Discovered exit to Factory (range 17) 12132 | -6/Factory | Loaded intel: 126 trap records 12134 | -6/Factory | Loaded intel: 4 garrison access locations 12245 | -6/Factory | Build established: Derelict-Mutant 12321 | -6/Factory | Identified Hacking Drone Bay 12810 | -6/Factory | Discovered exit to Factory (range 12) 13055 | -6/Factory | Destroyed 9 combat bots 13080 | -6/Factory | Lost 13 parts (5n3u5w) 13081 | -6/Factory | Cargo convoy interrupted 13095 | -6/Factory | Garrison activated, responded to threat 13164 | -6/Factory | Core integrity fell below 50% 13170 | -6/Factory | Discovered new exit (range 16) 13177 | -6/Factory | Entered Extension 13190 | -6/Extension | Lost 7 parts (1p2n3u1w) 13226 | -6/Extension | Core integrity fell below 20% 13244 | -6/Extension | Destroyed by Y-54 Guardian with Flak Gun Last Messages --------------- 13156_ Gauss Rifle severed. 13157_ Acquired GAL Module. 13159_ Med. Treads destroyed. 13159_ Imp. Terrain Scan Processor destroyed. 13159_ Adv. Targeting Computer destroyed. 13161_ Acquired Powered Hammer. 13162_ Slammed into G-50 Soldier. 13164_ Extracted 1 energy. 13164_ Acquired Zio. Biocell. 13165_ Critical hit (Burn: +37). 13165_ R-10 Processor collects Zio. Weapon Casing. 13170_ EXIT=FOUND LOCATION=UNKNOWN GOAL=ESCAPE Loading Extension stockpile data (x2)... 13215_ Y-54 Guardian suffers critical hit (Smash). 13215_ Destroyed Lgt. Treads. 13215_ Y-54 Guardian system corrupted by crushing effect. 13216_ Y-54 Guardian system terminally corrupted. 13216_ Flak Gun fried. Map ----- +----------------------------------------------------+ | | | | | | | | | | | | | | | | | | | | | | | ??????????????????????????????? | | ??????????????????####????????? | | ?????????????????#"T"###??????? | | ???????######?### !#??????? | | ???????# * ?+ + #??????? | | ???????# [ # # !!! +??????? | | ???????# ] # # !!! #??????? | | ???????# / + !!! #??????? | | ???????# # # #??????? | | ???????# / # #??## ##??????? | | ???????######?# #????##???????? | | ??????????????#!#?????????????? | | ?????##########%### #???????? | | ?????# Y = ? | | ?????#@############ #???????? | | ?????# #??????????????????????? | | ?????# #??????????????????????? | | ?????# #??????????????????????? | | ?????# #??????????????????????? | | ?????# #??????????????????????? | | ?????# #??????????????????????? | | ?????# #??????????????????????? | | ?????# #??????????????????????? | | ?????# #??????????????????????? | | ?????# #??????????????????????? | | ?????# #??????????????????????? | | ?????# #??????????????????????? | | ?????# #??????????????????????? | | ?????# #??????????????????????? | | ?????# #??????????????????????? | | ?????# #??????????????????????? | | ?????# #??????????????????????? | | ?????# #??????????????????????? | | ?????# #??????????????????????? | | ?##### #####??????????????????? | | ?# "" "" #??????????????????? | | ?# " " ##########?????????? | | ?# ????????? | | ?# ????????? | +----------------------------------------------------+ Best States ------------- Heat Dissipation 63 Energy Generation 27 Energy Capacity 290 Matter Stores 300 Matter Capacity 300 Sight Range 16 Robot Scan Range 20 Terrain Scan Range 24 Terrain Scan Density 2010 Armor Coverage 625 Resistance: EM 15 Evasion (%) 50 Targeting Accuracy 8 Recoil Reduction 5 Salvage Targeting 4 Item Schematics ----------------- Adv. Reclamation Unit | -7/Zion | Archive Kinecellerator | -7/Zion | Archive System Guard | -7/Zion | Archive Weapon Cycler | -7/Zion | Archive Enh. Optical Array | -7/Zion | Archive Lyr. Light Armor Plating | -7/Zion | Archive Force Field | -7/Zion | Archive Mak. Leg | -7/Zion | Archive Imp. Core Shielding | -7/Zion | Archive Arm. Huge Wheel | -7/Zion | Archive Neutron Cannon | -7/Zion | Archive Hvy. Battle Rifle | -7/Zion | Archive Adv. Heat Sink | -7/Zion | Archive Robot Schematics ------------------ S-27 Virus | -7/Zion | Archive K-01 Serf | -7/Zion | Archive B-48 Gladiator | -7/Zion | Archive C-57 Dissector | -7/Zion | Archive Fabricated ------------ Nothing Alien Tech Used ----------------- Core Expander Achievements -------------- None Challenges ------------ None Game ------ Seed EnhancedMediumKinecellerator Manual? 0 Play Time 02:35:46 Cumulative 157.1 hours Start 2021.12.10 @ 04:01:46 End 2021.12.12 @ 23:55:27 Sessions 19 Manual Loads 0 Difficulty Rogue Special Mode None Game No. 92 Rogue 92 Adventurer 0 Explorer 0 Win Type - Total 3 Types 2/0/0/1/0/0/0/0/0 Lore% 74 Gallery% 81 Achievement% 57 Wizard Run 0 Options --------- ASCII 1 Keyboard 1 Movement Vi Keybinds 0 Fullscreen 2 Font 18/Cog Map View 76x50 Tactical HUD 1 Map Filters NONE Filters NONE Steam 0 RUN: 9ad94cb1-0005-478b-b5c4-98dc59c0f136